fUST/lending_fUST_20240410
["ID","MTS","AMOUNT","RATE_DAILY","PERIOD"]
[322003546,1712680248740,-500.0,0.00024657,2]
[322003548,1712680248750,-151.235717,0.00024657,2]
[322003550,1712680248759,-151.235717,0.00024657,2]
[322003551,1712680248769,-500.0,0.00024657,2]
[322003552,1712680248778,-151.235717,0.00024657,2]
[322003553,1712680248787,-151.0,0.00024657,2]
[322003554,1712680248796,-151.0,0.00024657,2]
[322003555,1712680248805,-151.235717,0.00024657,2]
[322003556,1712680248814,-500.0,0.00024657,2]
[322003557,1712680248824,-500.81267653,0.00024657,2]
[322003558,1712680248833,-500.0,0.00024657,2]
[322003559,1712680248843,-619.39645854,0.00024657,2]
[322003560,1712680248852,-500.0,0.00024657,2]
[322003561,1712680248861,-151.0,0.00024657,2]
[322003562,1712680248871,-591.16,0.00024657,2]
[322003563,1712680248881,-500.0,0.00024657,2]
[322003564,1712680248890,-500.0,0.00024657,2]
[322003565,1712680248899,-522.42007486,0.00024657,2]
[322003566,1712680248908,-500.0,0.00024657,2]
[322003567,1712680248920,-500.0,0.00024657,2]
[322003568,1712680248930,-500.0,0.00024657,2]
[322003569,1712680248939,-500.0,0.00024657,2]
[322003570,1712680248948,-500.0,0.00024657,2]
[322003571,1712680248958,-501.01374739,0.00024657,2]
[322003572,1712680248970,-500.0,0.00024657,2]
[322003573,1712680248980,-500.0,0.00024657,2]
[322003574,1712680248990,-500.0,0.00024657,2]
[322003575,1712680248999,-509.40720171,0.00024657,2]
[322003576,1712680249008,-500.0,0.00024657,2]
[322003577,1712680249018,-788.96,0.00024657,2]
[322003579,1712680249028,-500.0,0.00024657,2]
[322003580,1712680249037,-500.0,0.00024657,2]
[322003581,1712680249047,-500.0,0.00024657,2]
[322003583,1712680249055,-500.0,0.00024657,2]
[322003585,1712680249064,-500.0,0.00024657,2]
[322003587,1712680249074,-500.0,0.00024657,2]
[322003589,1712680249083,-237.255398,0.00024657,2]
[322003591,1712680249094,-237.255398,0.00024657,2]
[322003593,1712680249103,-500.0,0.00024657,2]
[322003595,1712680249112,-500.0,0.00024657,2]
[322003597,1712680249120,-500.0,0.00024657,2]
[322003599,1712680249130,-501.45372642,0.00024657,2]
[322003601,1712680249139,-151.0,0.00024657,2]
[322003603,1712680249148,-500.0,0.00024657,2]
[322003605,1712680249157,-506.28946276,0.00024657,2]
[322003606,1712680249167,-500.0,0.00024657,2]
[322003608,1712680249176,-374.61535197,0.00024657,2]
[322003610,1712680249185,-500.0,0.00024657,2]
[322003612,1712680249195,-500.0,0.00024657,2]
[322003614,1712680249204,-500.0,0.00024657,2]
[322003617,1712680249215,-1706.2,0.00024657,2]
[322003618,1712680249224,-151.0,0.00024657,2]
[322003620,1712680249234,-500.0,0.00024657,2]
[322003622,1712680249243,-500.0,0.00024657,2]
[322003625,1712680249253,-502.09778527,0.00024657,2]
[322003626,1712680249262,-500.0,0.00024657,2]
[322003628,1712680249271,-460.4420057,0.00024657,2]
[322003630,1712680249280,-500.0,0.00024657,2]
[322003632,1712680249289,-639.69385496,0.00024657,2]
[322003635,1712680249299,-500.0,0.00024657,2]
[322003637,1712680249313,-500.0,0.00024657,2]
[322003639,1712680249322,-500.0,0.00024657,2]
[322003641,1712680249332,-500.0,0.00024657,2]
[322003643,1712680249341,-151.0,0.00024657,2]
[322003645,1712680249351,-151.0,0.00024657,2]
[322003647,1712680249360,-151.0,0.00024657,2]
[322003649,1712680249369,-151.0,0.00024657,2]
[322003651,1712680249378,-800.47,0.00024657,2]
[322003653,1712680249387,-667.58,0.00024657,2]
[322003655,1712680249396,-2043.97,0.00024657,2]
[322003668,1712680249507,-500.0,0.00024657,2]
[322003670,1712680249517,-500.0,0.00024657,2]
[322003672,1712680249526,-592.96352232,0.00024657,2]
[322003674,1712680249535,-500.0,0.00024657,2]
[322003676,1712680249544,-500.0,0.00024657,2]
[322003678,1712680249555,-500.0,0.00024657,2]
[322003680,1712680249564,-1630.706919,0.00024657,2]
[322003682,1712680249573,-1630.706919,0.00024657,2]
[322003684,1712680249585,-500.0,0.00024657,2]
[322003686,1712680249594,-1630.706919,0.00024657,2]
[322003688,1712680249603,-1630.706919,0.00024657,2]
[322003690,1712680249612,-500.0,0.00024657,2]
[322003691,1712680249623,-502.82656281,0.00024657,2]
[322003693,1712680249633,-569.99,0.00024657,2]
[322003695,1712680249642,-500.0,0.00024657,2]
[322003697,1712680249651,-2436.2,0.00024657,2]
[322003699,1712680249661,-4224.87,0.00024657,2]
[322003701,1712680249671,-500.0,0.00024657,2]
[322003703,1712680249681,-151.0,0.00024657,2]
[322003705,1712680249692,-151.0,0.00024657,2]
[322003707,1712680249702,-500.0,0.00024657,2]
[322003709,1712680249714,-500.0,0.00024657,2]
[322003711,1712680249727,-500.0,0.00024657,2]
[322003713,1712680249739,-501.33495662,0.00024657,2]
[322003715,1712680249750,-8315.96,0.00024657,2]
[322003717,1712680249761,-500.0,0.00024657,2]
[322003719,1712680249772,-500.0,0.00024657,2]
[322003721,1712680249782,-500.0,0.00024657,2]
[322003723,1712680249793,-154.468999,0.00024657,2]
[322003725,1712680249803,-502.13067898,0.00024657,2]
[322003727,1712680249813,-500.0,0.00024657,2]
[322003729,1712680249823,-500.0,0.00024657,2]
[322003731,1712680249832,-285.240923,0.00024657,2]
[322003733,1712680249842,-550.56537976,0.00024657,2]
[322003735,1712680249852,-285.240923,0.00024657,2]
[322003737,1712680249861,-7891.96,0.00024657,2]
[322003739,1712680249870,-285.240923,0.00024657,2]
[322003741,1712680249880,-285.240923,0.00024657,2]
[322003743,1712680249889,-3781.91,0.00024657,2]
[322003745,1712680249899,-500.82046413,0.00024657,2]
[322003747,1712680249908,-500.0,0.00024657,2]
[322003749,1712680249919,-501.33415078,0.00024657,2]
[322003751,1712680249929,-151.0,0.00024657,2]
[322003753,1712680249938,-151.0,0.00024657,2]
[322003755,1712680249947,-233.857775,0.00024657,2]
[322003757,1712680249957,-233.857775,0.00024657,2]
[322003759,1712680249971,-500.0,0.00024657,2]
[322003761,1712680249981,-1888.03,0.00024657,2]
[322003763,1712680249990,-233.857775,0.00024657,2]
[322003765,1712680250000,-233.857775,0.00024657,2]
[322003767,1712680250010,-705.85,0.00024657,2]
[322003769,1712680250022,-500.0,0.00024657,2]
[322003771,1712680250032,-505.83584251,0.00024657,2]
[322003773,1712680250043,-500.0,0.00024657,2]
[322003775,1712680250053,-500.0,0.00024657,2]
[322003777,1712680250063,-500.0,0.00024657,2]
[322003779,1712680250072,-500.0,0.00024657,2]
[322003781,1712680250081,-1226.87,0.00024657,2]
[322003782,1712680250091,-753.24,0.00024657,2]
[322003784,1712680250101,-1331.15,0.00024657,2]
[322003786,1712680250114,-286.72345256,0.00024657,2]
[322003788,1712680250123,-500.0,0.00024657,2]
[322003790,1712680250134,-500.0,0.00024657,2]
[322003792,1712680250145,-151.0,0.00024657,2]
[322003794,1712680250154,-2419.75,0.00024657,2]
[322003796,1712680250165,-151.0,0.00024657,2]
[322003798,1712680250174,-530.08,0.00024657,2]
[322003800,1712680250184,-501.57523464,0.00024657,2]
[322003802,1712680250193,-151.0,0.00024657,2]
[322003804,1712680250202,-500.0,0.00024657,2]
[322003806,1712680250214,-151.0,0.00024657,2]
[322003808,1712680250224,-335.53211817,0.00024657,2]
[322003810,1712680250234,-735.27,0.00024657,2]
[322003812,1712680250246,-500.0,0.00024657,2]
[322003814,1712680250274,-151.0,0.00024657,2]
[322003816,1712680250305,-151.0,0.00024657,2]
[322003818,1712680250333,-4577.22,0.00024657,2]
[322003820,1712680250356,-758.05,0.00024657,2]
[322003822,1712680250377,-500.0,0.00024657,2]
[322003824,1712680250398,-746.317211,0.00024657,2]
[322003826,1712680250420,-746.317211,0.00024657,2]
[322003829,1712680250442,-746.317211,0.00024657,2]
[322003830,1712680250464,-746.317211,0.00024657,2]
[322003832,1712680250485,-254.282149,0.00024657,2]
[322003834,1712680250506,-254.282149,0.00024657,2]
[322003836,1712680250525,-151.0,0.00024657,2]
[322003838,1712680250534,-500.0,0.00024657,2]
[322003840,1712680250543,-500.0,0.00024657,2]
[322003842,1712680250552,-254.282149,0.00024657,2]
[322003844,1712680250565,-500.0,0.00024657,2]
[322003846,1712680250575,-254.282149,0.00024657,2]
[322003849,1712680250585,-1445.13,0.00024657,2]
[322003851,1712680250594,-500.0,0.00024657,2]
[322003852,1712680250604,-500.0,0.00024657,2]
[322003854,1712680250613,-4487.84,0.00024657,2]
[322003856,1712680250622,-500.0,0.00024657,2]
[322003858,1712680250631,-500.0,0.00024657,2]
[322003860,1712680250641,-500.0,0.00024657,2]
[322003863,1712680250651,-2279.62,0.00024657,2]
[322003864,1712680250660,-2415.52,0.00024657,2]
[322003867,1712680250670,-1168.55,0.00024657,2]
[322003868,1712680250679,-459.72899616,0.00024657,2]
[322003870,1712680250688,-151.0,0.00024657,2]
[322003872,1712680250698,-348.714882,0.00024657,2]
[322003874,1712680250708,-348.714882,0.00024657,2]
[322003877,1712680250720,-2240.35,0.00024657,2]
[322003879,1712680250729,-1056.83,0.00024657,2]
[322003881,1712680250738,-2704.28,0.00024657,2]
[322003882,1712680250747,-348.714882,0.00024657,2]
[322003884,1712680250756,-348.714882,0.00024657,2]
[322003886,1712680250765,-500.0,0.00024657,2]
[322003889,1712680250774,-500.0,0.00024657,2]
[322003890,1712680250783,-502.4452704,0.00024657,2]
[322003892,1712680250792,-500.0,0.00024657,2]
[322003894,1712680250801,-560.15,0.00024657,2]
[322003896,1712680250810,-500.0,0.00024657,2]
[322003898,1712680250820,-1008.35,0.00024657,2]
[322003901,1712680250829,-379.851296,0.00024657,2]
[322003902,1712680250838,-24870.17,0.00024657,2]
[322003904,1712680250847,-951.89,0.00024657,2]
[322003906,1712680250856,-379.851296,0.00024657,2]
[322003908,1712680250866,-1229.64,0.00024657,2]
[322003910,1712680250875,-500.0,0.00024657,2]
[322003912,1712680250884,-501.46231694,0.00024657,2]
[322003914,1712680250893,-500.0,0.00024657,2]
[322003916,1712680250902,-152.727829,0.00024657,2]
[322003918,1712680250911,-781.14,0.00024657,2]
[322003921,1712680250920,-805.75,0.00024657,2]
[322003922,1712680250929,-537.34301772,0.00024657,2]
[322003924,1712680250938,-1863.13778734,0.00024657,2]
[322005727,1712680322849,-263.43758151,0.0002107,2]
[322005728,1712680322880,-193.0126642,0.0002107,2]
[322005729,1712680322900,-263.43758151,0.00021072,2]
[322005730,1712680322915,-193.0126642,0.00021072,2]
[322005731,1712680322928,-1587.09950858,0.00021072,2]
[322005735,1712680418089,-215.764455,0.00021071,2]
[322005736,1712680418289,-215.764455,0.00021072,2]
[322005737,1712680418342,-2568.47109,0.00021072,2]
[322005739,1712680478335,-1400.0,0.00021072,2]
[322005740,1712680518326,-207.24041701,0.00021988,2]
[322005741,1712680518356,-205.70180304,0.00021988,2]
[322005742,1712680518390,-181.0288212,0.00021989,2]
[322005743,1712680518422,-185.58568069,0.00021989,2]
[322005744,1712680518452,-5.15638454,0.0002199,2]
[322005745,1712680518464,-207.24041701,0.0002199,2]
[322005746,1712680518476,-205.70180304,0.0002199,2]
[322005747,1712680518491,-17.63156699,0.0002199,2]
[322005748,1712680518501,-163.39725421,0.0002199,2]
[322005749,1712680518513,-185.58568069,0.0002199,2]
[322005750,1712680518525,-169.4120651,0.0002199,2]
[322005751,1712680518534,-266.31810648,0.00021991,2]
[322005753,1712680569384,-563.86655252,0.00021985,2]
[322005754,1712680601756,431.44874983,0.00020222,5]
[322005755,1712680613911,-562.79218199,0.00021091,2]
[322005756,1712680613944,-407.52291202,0.00021092,2]
[322005757,1712680669026,-263.43758151,0.00021091,2]
[322005758,1712680669054,-239.36981198,0.00021092,2]
[322005759,1712680669078,-271.89359431,0.00021996,2]
[322005760,1712680669103,-1239.0739499,0.00021997,2]
[322005761,1712680669130,-389.97372794,0.00021997,2]
[322005762,1712680669291,-300.0,0.00021997,2]
[322005763,1712680669315,-300.0,0.00021997,2]
[322005764,1712680669339,-2738.95166241,0.00021998,2]
[322005765,1712680669362,-638.05192735,0.00022,2]
[322005766,1712680669385,-181.0288212,0.00022468,2]
[322005767,1712680669409,-3718.21894048,0.00022469,2]
[322005768,1712680669433,-14719.99998292,0.00022471,2]
[322005769,1712680701288,-154.70889975,0.00022469,2]
[322005770,1712680735660,347.80474204,0.0002219,5]
[322005771,1712680746322,-154.98450155,0.00022467,2]
[322005772,1712680746360,-690.0309969,0.00022468,2]
[322005773,1712680789331,-282.31285316,0.00022465,2]
[322005774,1712680789361,-407.69592082,0.00022466,2]
[322005775,1712680789449,-2119.98245204,0.00022468,2]
[322005780,1712681173260,1000.0,0.00021366,2]
[322005809,1712681230101,-1878.29113948,0.0002136,2]
[322005879,1712681432767,-250.0,0.00021177,2]
[322005881,1712681432777,-737.79514527,0.0002136,2]
[322005883,1712681432787,-693.601798,0.00021361,2]
[322005885,1712681432796,-300.0,0.00021365,2]
[322005887,1712681432806,-300.0,0.00021365,2]
[322005889,1712681432815,-2507.60782929,0.00021366,2]
[322005891,1712681432827,-21392.39217071,0.00021366,2]
[322005893,1712681432836,-520.52692214,0.000219,2]
[322005895,1712681432846,-638.05192735,0.00022,2]
[322005897,1712681432855,-414.28165424,0.00022267,2]
[322005899,1712681432864,-200.0,0.00022334,2]
[322005901,1712681432873,-435.73017158,0.00022364,2]
[322005903,1712681432884,-500.0,0.00022365,2]
[322005904,1712681432894,-500.0,0.00022365,2]
[322005905,1712681432904,-330.33664003,0.00022365,2]
[322005907,1712681432914,-28476.29548483,0.00022366,2]
[322005908,1712681432923,-174.65478431,0.00022367,2]
[322005909,1712681432933,-718.27838495,0.00022368,2]
[322005910,1712681432943,-5068.88441603,0.00022468,2]
[322005911,1712681432952,-174.65478422,0.00022497,2]
[322005912,1712681432962,-606.49194296,0.00022557,2]
[322005913,1712681432970,-174.65478422,0.00022626,2]
[322005914,1712681432982,-174.65478422,0.00022756,2]
[322005915,1712681432991,-174.65478422,0.00022886,2]
[322005916,1712681433000,-242.74204017,0.00023,2]
[322005917,1712681433009,-174.65478422,0.00023015,2]
[322005918,1712681433018,-174.65478422,0.00023145,2]
[322005919,1712681433027,-420.0,0.00023232,2]
[322005920,1712681433036,-174.65478422,0.00023275,2]
[322005921,1712681433045,-174.65478422,0.00023404,2]
[322005922,1712681433055,-414.28165422,0.00023412,2]
[322005923,1712681433065,-420.0,0.00023501,2]
[322005924,1712681433075,-174.65478422,0.00023534,2]
[322005925,1712681433085,-174.65478422,0.00023664,2]
[322005926,1712681433094,-579.21156351,0.00023783,2]
[322005927,1712681433103,-174.65478422,0.00023794,2]
[322005928,1712681433112,-174.65478422,0.00023923,2]
[322005929,1712681433121,-174.65478422,0.00024053,2]
[322005930,1712681433130,-427.41608572,0.00024154,2]
[322005943,1712681438934,-93.11083638,0.00024154,2]
[322005945,1712681438943,-282.82676597,0.00024162,2]
[322005946,1712681438953,-174.65478422,0.00024183,2]
[322005948,1712681438962,-174.65478422,0.00024312,2]
[322005950,1712681438971,-6638.14528063,0.00024408,2]
[322005952,1712681438992,-2924.07210586,0.00024408,2]
[322005953,1712681439003,-1801.8598846,0.00024408,2]
[322005955,1712681439012,-174.65478422,0.00024442,2]
[322005956,1712681439021,-2000.0,0.00024557,2]
[322005957,1712681439030,-155.13836716,0.00024557,2]
[322005958,1712681439040,-414.28165422,0.00024557,2]
[322005959,1712681439049,-153.0,0.0002457,2]
[322005960,1712681439058,-174.65478422,0.00024572,2]
[322005961,1712681439068,-155.13836715,0.00024648,2]
[322005962,1712681439077,-112.29438328,0.00024655,2]
[322005963,1712681439089,-133.2888922,0.00024655,2]
[322005964,1712681439099,-162.70176314,0.00024655,2]
[322005965,1712681439108,-212.52869952,0.00024655,2]
[322005966,1712681439117,-193.67870914,0.00024655,2]
[322005967,1712681439126,-188.6336911,0.00024655,2]
[322005968,1712681439136,-264.66360142,0.00024655,2]
[322005969,1712681439147,-422.53606459,0.00024655,2]
[322005970,1712681439158,-215.58014229,0.00024655,2]
[322005971,1712681439167,-1441.44645946,0.00024655,2]
[322005972,1712681439178,-211.24192726,0.00024655,2]
[322005973,1712681439187,-81.2053188,0.00024655,2]
[322005974,1712681439203,-504.04962255,0.00024655,2]
[322005975,1712681439212,-313.10904669,0.00024655,2]
[322005976,1712681439222,-255.45130168,0.00024655,2]
[322005977,1712681439231,-276.31035049,0.00024655,2]
[322005978,1712681439241,-323.22690908,0.00024655,2]
[322005979,1712681439250,-693.5525059,0.00024655,2]
[322005980,1712681439386,-248.56344425,0.00024655,2]
[322005981,1712681439396,-192.20549595,0.00024655,2]
[322005982,1712681439405,-181.13214996,0.00024655,2]
[322005983,1712681439416,-530.70137355,0.00024655,2]
[322005984,1712681439424,-1430.92687485,0.00024655,2]
[322005985,1712681439435,-353.68830653,0.00024655,2]
[322005986,1712681439445,-871.50926147,0.00024655,2]
[322005987,1712681439454,-421.84918282,0.00024655,2]
[322005988,1712681439490,404.32796197,0.00020371,2]
[322005997,1712681440763,-194.92837239,0.00024655,2]
[322005998,1712681440772,-186.26410615,0.00024655,2]
[322005999,1712681440781,-181.83117811,0.00024655,2]
[322006000,1712681440791,-155.44771079,0.00024655,2]
[322006001,1712681440800,-281.52863256,0.00024655,2]
[322006002,1712681440812,-97.90080639,0.00024655,2]
[322006003,1712681440822,-519.61057671,0.00024655,2]
[322006004,1712681440831,-3088.34394676,0.00024655,2]
[322006124,1712681444788,-48.89803773,0.00024655,2]
[322006126,1712681444797,-161.51552598,0.00024656,2]
[322006128,1712681444806,-1930.64911435,0.00024656,2]
[322006130,1712681444818,-1752.5,0.00024656,2]
[322006640,1712681633474,2500.0,0.0002,2]
[322006644,1712681674228,154.98450155,0.00019724,2]
[322006645,1712681680295,3500.0,0.00022,90]
[322006646,1712681680322,1500.0,0.00022,90]
[322006647,1712681690197,154.98450155,0.00019724,2]
[322006648,1712681708196,154.98450155,0.00019724,2]
[322006649,1712681724203,154.98450155,0.00019724,2]
[322006650,1712681742211,154.98450155,0.00019724,2]
[322006651,1712681762216,220.62749225,0.00018042,2]
[322006652,1712681858102,254.1816708,0.00020956,2]
[322006653,1712681865450,11893.6727746,0.00020956,2]
[322006655,1712681980910,-232.88797737,0.00021421,2]
[322006656,1712681980943,-1617.16242552,0.00021536,2]
[322006657,1712681980977,-3735.81357685,0.00021537,2]
[322006658,1712681981011,-5566.47266521,0.00021537,2]
[322006659,1712681981049,-1866.00896233,0.00021537,2]
[322006660,1712681981082,-1029.02845319,0.00021538,2]
[322006661,1712681981116,-868.54910044,0.00021538,2]
[322006662,1712681981151,-781.78611462,0.00021538,2]
[322006663,1712681981185,-886.79559656,0.00021538,2]
[322006664,1712681981219,-689.18078323,0.00021539,2]
[322006665,1712681981252,-185.57928704,0.00021539,2]
[322006666,1712681981286,-9419.00851662,0.00021539,2]
[322006667,1712681981320,-203.53739799,0.0002154,2]
[322006668,1712681981353,-911.49648842,0.0002154,2]
[322006669,1712681981371,-13.38530922,0.0002154,2]
[322006670,1712681981379,-219.50266815,0.0002154,2]
[322006671,1712681981392,-1617.16242552,0.0002154,2]
[322006672,1712681981407,-3735.81357685,0.0002154,2]
[322006673,1712681981419,-5566.47266521,0.0002154,2]
[322006674,1712681981430,-1866.00896233,0.0002154,2]
[322006675,1712681981441,-1029.02845319,0.0002154,2]
[322006676,1712681981452,-868.54910044,0.0002154,2]
[322006677,1712681981464,-781.78611462,0.0002154,2]
[322006678,1712681981475,-886.79559656,0.0002154,2]
[322006679,1712681981486,-689.18078323,0.0002154,2]
[322006680,1712681981497,-185.57928704,0.0002154,2]
[322006681,1712681981513,-1689.64150674,0.0002154,2]
[322006682,1712681981522,-154.98450155,0.00021541,2]
[322006683,1712681981531,-1087.22335945,0.00021541,2]
[322006684,1712681981542,-2616.08628475,0.00021541,2]
[322006685,1712681981552,-2445.17979243,0.00021541,2]
[322006686,1712681981561,-687.19966601,0.00021542,2]
[322006687,1712681981570,-738.69340569,0.00021542,2]
[322006688,1712681981584,-203.53739799,0.00021542,2]
[322006689,1712681981595,-924.88179764,0.00021542,2]
[322006690,1712681991747,5163.2789982,0.00020956,2]
[322006691,1712681992101,156.78359481,0.00016228,2]
[322006692,1712681992168,924.88179764,0.00020555,2]
[322006693,1712681993329,649.92327912,0.00020956,2]
[322006694,1712681994442,177.588732,0.00020341,2]
[322006695,1712682003920,1462.2510339,0.0002059,2]
[322006696,1712682016179,924.88179764,0.0002046,2]
[322006697,1712682034177,924.3864243,0.0002046,2]
[322006698,1712682043628,155.0,0.0002059,2]
[322006699,1712682057576,222.29352412,0.0002059,2]
[322006700,1712682068829,24900.0,0.00020313,2]
[322006701,1712682152527,346.800899,0.00020302,2]
[322006704,1712682267562,236.16570437,0.00020302,2]
[322006712,1712682344111,837.99382389,0.00019441,2]
[322006723,1712682402125,852.734513,0.00020151,2]
[322006724,1712682415391,610.0125325,0.00020303,2]
[322006730,1712682504826,176.298426,0.00019847,2]
[322006732,1712682597846,24900.0,0.00020109,2]
[322006733,1712682601926,200.0,0.0002011,2]
[322006734,1712682605136,400.0,0.00020109,2]
[322006771,1712682632636,-155.0,0.00021098,2]
[322006772,1712682632645,-315.246646,0.00021098,2]
[322006775,1712682632657,-247.03134489,0.00021098,2]
[322006777,1712682632666,-1650.80256375,0.00021098,2]
[322006782,1712682632708,-19.8519584,0.00021098,2]
[322006784,1712682632717,-1029.02845319,0.00021098,2]
[322006787,1712682632727,-240.67684413,0.00021099,2]
[322006790,1712682632736,-1042.91596156,0.00021099,2]
[322006793,1712682632746,-2579.961404,0.00021099,2]
[322006796,1712682632755,-868.36531208,0.00021099,2]
[322006798,1712682632764,-303.81962515,0.00021099,2]
[322006800,1712682632774,-2616.08628475,0.00021099,2]
[322006802,1712682632784,-2616.08628475,0.00021099,2]
[322006804,1712682632793,-1963.97984376,0.00021099,2]
[322006806,1712682632802,-407.69592082,0.000211,2]
[322006808,1712682632812,-1930.68038705,0.000211,2]
[322006810,1712682632822,-886.79559656,0.00021101,2]
[322006812,1712682632831,-936.13344748,0.00021101,2]
[322006814,1712682632841,-155.0,0.00021101,2]
[322006816,1712682632851,-185.57928704,0.00021101,2]
[322006818,1712682632860,-400.0,0.00021101,2]
[322006820,1712682632870,-300.0,0.00021102,2]
[322006821,1712682632879,-300.0,0.00021102,2]
[322006823,1712682632889,-205.70180304,0.00021102,2]
[322006825,1712682632898,-263.43758151,0.00021102,2]
[322006827,1712682632907,-155.0,0.00021102,2]
[322006829,1712682632917,-3735.81357685,0.00021102,2]
[322006831,1712682632926,-4417.8414043,0.00021102,2]
[322006839,1712682637773,-546.04585195,0.00021097,2]
[322006840,1712682637784,-1984.58160402,0.00021097,2]
[322006842,1712682638046,-108.7183974,0.00021097,2]
[322006843,1712682638057,-1485.70436416,0.00021097,2]
[322006845,1712682638068,-2616.08628475,0.00021099,2]
[322006847,1712682638078,-2290.55787991,0.00021102,2]
[322006849,1712682638091,-925.75,0.00021102,2]
[322006851,1712682638104,-11501.37185567,0.00021102,2]
[322006854,1712682638115,-405.67865039,0.00021102,2]
[322006856,1712682638126,-401.76413104,0.00021102,2]
[322006858,1712682638136,-266.28967596,0.00021102,2]
[322006860,1712682638146,-687.19966601,0.00021103,2]
[322006861,1712682638156,-11367.75052295,0.00021103,2]
[322006863,1712682638166,-1545.877682,0.00021103,2]
[322006865,1712682638176,-203.53739799,0.00021103,2]
[322006867,1712682638186,-283.34484323,0.00021103,2]
[322006868,1712682638201,-5063.29116838,0.00021103,2]
[322006869,1712682638213,-8698.378092,0.00021103,2]
[322006870,1712682638225,-8984.23413654,0.00021103,2]
[322006871,1712682638235,-5566.47266521,0.00021103,2]
[322006873,1712682638245,-155.0,0.00021103,2]
[322006874,1712682638255,-58984.79781209,0.00021103,2]
[322006876,1712682638266,-207.24041701,0.00021103,2]
[322006878,1712682638275,-524.73312661,0.00021103,2]
[322006880,1712682638292,-1087.22335945,0.00021104,2]
[322006882,1712682638301,-689.18078323,0.00021104,2]
[322006884,1712682638311,-282.7345517,0.00021104,2]
[322006886,1712682638320,-1617.16242552,0.00021104,2]
[322006888,1712682638329,-3291.0761489,0.00021104,2]
[322006890,1712682638339,-271.89359431,0.00021104,2]
[322006892,1712682638347,-473.2366857,0.00021104,2]
[322006894,1712682638357,-1307.52332084,0.00021104,2]
[322006895,1712682638366,-188.6336911,0.00021105,2]
[322006897,1712682638375,-193.0126642,0.00021105,2]
[322006899,1712682638385,-327.79449094,0.00021105,2]
[322006901,1712682638396,-540.7546095,0.00021105,2]
[322006903,1712682638406,-181.0288212,0.00021105,2]
[322006905,1712682638415,-318.71519717,0.00021105,2]
[322006906,1712682638427,-244.07698482,0.00021105,2]
[322006907,1712682638436,-470.02690454,0.00021106,2]
[322006908,1712682638446,-300.0,0.00021111,2]
[322006909,1712682638455,-2169.77734771,0.00021115,2]
[322006910,1712682638464,-200.19709322,0.00021127,2]
[322006911,1712682638474,-115.37633269,0.0002113,2]
[322007018,1712682639825,-464.78866184,0.00021101,2]
[322007020,1712682639837,-367.733038,0.00021101,2]
[322007027,1712682639899,-1090.35511393,0.00021101,2]
[322007038,1712682642822,548.730171,0.00020491,2]
[322007044,1712682643154,-562.79218199,0.00021096,2]
[322007045,1712682643163,-1214.36517072,0.00021101,2]
[322007046,1712682643173,-155.0,0.00021101,2]
[322007047,1712682643183,-478.43742362,0.00021102,2]
[322007048,1712682643192,-636.0463378,0.00021102,2]
[322007049,1712682643202,-500.0,0.00021102,2]
[322007050,1712682643212,-500.0,0.00021102,2]
[322007051,1712682643221,-40.05799316,0.0002113,2]
[322007052,1712682643231,-5783.085097,0.00021131,2]
[322007053,1712682643240,-155.13836715,0.0002118,2]
[322007054,1712682643249,-309.9690031,0.00021283,2]
[322007055,1712682643258,-249.34736369,0.00021283,2]
[322007056,1712682643267,-1384.65333012,0.00021319,2]
[322007057,1712682643276,-282.23953123,0.00021537,2]
[322007058,1712682643287,-156.54809607,0.00021537,2]
[322007059,1712682643297,-309.9690031,0.00021537,2]
[322007060,1712682643306,-1605.62406774,0.00021537,2]
[322007061,1712682643315,-2935.70815242,0.00021537,2]
[322007062,1712682643324,-360.76316777,0.00021538,2]
[322007063,1712682643334,-215.70131407,0.00021538,2]